Cogmind - Beta 11.1 @@@ ROGUE MODE // 2022.04.23 @ 14:28:57 Player: Cracklepappy Result: Destroyed by D-53 Grenadier with Mini Grenade Launcher Performance ------------- Evolutions (0) 0 Regions Visited (2) 400 Robots Destroyed (26) 130 Value Destroyed (512) 512 Prototype IDs (5) 100 Alien Tech Used (0) 0 Bonus (0) 0 TOTAL SCORE: 1142 Bonus ------- None Cogmind --------- Core Integrity 0/250 Matter 244/300 Energy 87/100 System Corruption 3% Temperature Cool (2) Movement Treading (160) Location -10/Mines Parts ------- > --- POWER (1) -------- (None) > --- PROPULSION (2) --- Light Treads Light Treads > --- UTILITY (2) ------ Large Storage Unit Core Shielding > --- WEAPON (2) ------- Light Assault Rifle Light Cannon > --- INVENTORY (15) --- Ion Engine Ion Engine Light Ion Engine Compact Wheel Large Storage Unit Improved Terrain Scanner Seismic Detector Datajack Mining Laser Peak State ------------ > --- POWER ------------ Light Nuclear Core > --- PROPULSION ------- Light Treads Light Treads > --- UTILITY ---------- Large Storage Unit Targeting Computer > --- WEAPON ----------- Assault Rifle Light Assault Rifle > --- INVENTORY -------- Light Ion Engine Light Treads Aluminum Leg Aluminum Leg Compact Wheel Small Storage Unit Large Storage Unit Improved Terrain Scanner Seismic Detector Light Assault Rifle Light Cannon Mining Laser [Rating: 10] Favorites ----------- Power Ion Engine Engine Ion Engine Power Core Light Nuclear Core Propulsion Light Treads Treads Light Treads Wheel Compact Wheel Utility Large Storage Unit Device Seismic Detector Storage Large Storage Unit Processor Targeting Computer Protection Core Shielding Weapon Assault Rifle Energy Gun Medium Laser Ballistic Gun Assault Rifle Ballistic Cannon Light Cannon Build | -11 -10 -10 ------- Run | Scr Mat Min Slots Evolved . | . . . Power . | . . . Propulsion . | . . . Utility . | . . . Weapon . | . . . Parts Attached 24 | 9 10 5 Power 5 | 1 4 . Engine 4 | 1 3 . Core 1 | . 1 . Reactor . | . . . Propulsion 7 | 4 . 3 Treads 5 | 2 . 3 Leg . | . . . Wheel 2 | 2 . . Hover . | . . . Flight . | . . . Utility 6 | 2 4 . Device 1 | 1 . . Storage 2 | 1 1 . Processor 2 | . 2 . Hackware . | . . . Protection 1 | . 1 . Artifact . | . . . Weapon 6 | 2 2 2 Energy Gun 1 | 1 . . Energy Cannon . | . . . Ballistic Gun 4 | 1 2 1 Ballistic Cannon 1 | . . 1 Launcher . | . . . Special Weapon . | . . . Impact Weapon . | . . . Slashing Weapon . | . . . Piercing Weapon . | . . . Special Melee Weapon . | . . . Unidentified Prototypes . | . . . Parts Lost 8 | . 3 5 Power 1 | . . 1 Propulsion 3 | . 1 2 Utility 1 | . 1 . Weapon 3 | . 1 2 Highest Loss Streak 5 | . 2 5 To Critical Strikes . | . . . Average Slot Usage (%) 95 | . 96 87 Engine 12 | . 11 14 Core 1 | . 2 . Treads 25 | . 26 16 Device 1 | . 1 . Storage 14 | . 14 14 Processor 6 | . 7 . Protection 4 | . 3 14 Energy Gun 1 | . 1 . Ballistic Gun 26 | . 26 28 Naked Turns . | . . . Heaviest Build 29 | 15 29 29 Greatest Support 40 | 40 40 40 Greatest Overweight (x) 1 | . 1 1 Average Overweight (x) . | . . . Largest Inventory Capacity 15 | 8 15 15 Average Capacity 12 | 7 12 15 Most Carried 14 | 8 14 14 Average Carried 10 | 5 11 13 Final Capacity 15 | 8 15 15 Final Carried 14 | 8 14 9 Class Distribution -------------------- 100% | Mutant Dominant Class ---------------- Mutant | -10/Materials Mutant | -10/Mines Resources | -11 -10 -10 ----------- Run | Scr Mat Min Matter Collected 625 | 297 328 . Remotely . | . . . Salvage Created 756 | 118 638 . Parts 58 | 10 48 . Haulers Intercepted 2 | . 2 . Recyclers Shooed 3 | . 3 . Parts Field Recycled . | . . . Retrieved Matter . | . . . Parts Self-Destructed . | . . . Prevented . | . . . Kills | -11 -10 -10 ------- Run | Scr Mat Min Combat Hostiles Destroyed 16 | . 15 1 Guns 15 | . 15 . Cannons 1 | . . 1 Classes Destroyed 8 | 2 5 1 Worker 1 | . 1 . Tunneler 3 | 3 . . Hauler 2 | . 2 . Recycler 1 | 1 . . Watcher 3 | . 3 . Swarmer 6 | . 6 . Grunt 9 | . 9 . Demolisher 1 | . . 1 Best Kill Streak 5 | 2 5 1 Combat Bots Only 3 | . 3 1 Max Kills in Single Turn 1 | 1 1 1 Gunslinging . | . . . Exploded . | . . . Melee . | . . . Uniques/NPCs Destroyed . | . . . Combat | -11 -10 -10 -------- Run | Scr Mat Min Damage Taken 1273 | . 714 559 Core 254 | . 160 94 Absorbed by Shields . | . . . Redirected to Shielding 23 | . 6 17 Core Remaining (%) 100 | 100 . . Volleys Fired 76 | 10 62 4 Largest 2 | 2 2 2 Hottest 70 | 70 70 55 Shots Fired 152 | 20 123 9 Gun 150 | 20 123 7 Cannon 2 | . . 2 Launcher . | . . . Special . | . . . Kinetic 124 | 10 105 9 Thermal 28 | 10 18 . Explosive . | . . . Electromagnetic . | . . . Robot Hit Streak 10 | 7 10 5 Robot Miss Streak 3 | 2 3 2 Penetration Max . | . . . Secondary Targets 5 | . 5 . Max Gunslinging Chain 1 | . 1 . Shots Hit Robots 105 | 15 84 6 Core Hits 42 | 5 35 2 Critical Kills . | . . . Critical Parts Destroyed 1 | . 1 . Critical Strikes 3 | . 3 . Burn 2 | . 2 . Destroy 1 | . 1 . Melee Attacks . | . . . Impact . | . . . Slashing . | . . . Piercing . | . . . Sneak Attacks . | . . . Combat Hostiles . | . . . Follow-up Attacks . | . . . Damage Inflicted 1229 | 186 976 67 Guns 1170 | 186 950 34 Cannons 33 | . . 33 Explosions . | . . . Melee . | . . . Ramming 26 | . 26 . Kinetic 978 | 98 813 67 Thermal 225 | 88 137 . Explosive . | . . . Electromagnetic . | . . . Impact . | . . . Slashing . | . . . Piercing . | . . . Highest Corruption 3 | . 3 3 Average Corruption 3 | . 3 3 Corruption Purged . | . . . Corruption Blocked . | . . . Effects 8 | . 4 4 Message Errors 2 | . 2 . Matter Fused 2 | . 1 1 Energy Discharges 1 | . 1 . Data Loss (major) 2 | . . 2 Misfires 1 | . . 1 Overload Shots . | . . . Overflow Damage . | . . . Projectiles . | . . . Explosions . | . . . Melee . | . . . Knockbacks 1 | . . 1 Impact . | . . . Kinetic 1 | . . 1 Secondary . | . . . Self-Inflicted Damage . | . . . Shots . | . . . Rammed 6 | . 6 . Targets Rammed 7 | . 7 . Kicked . | . . . Crushed 1 | . 1 . Highest Temperature 210 | 45 210 14 Average Temperature 42 | 17 50 6 Received Heat Transfer 385 | . 345 40 Siege Activations . | . . . Robots Corrupted . | . . . Combat Hostiles . | . . . Parts Fried . | . . . Impact Corruptions . | . . . Robots Melted . | . . . Combat Hostiles . | . . . Parts Melted . | . . . Heat Transferred 814 | 259 555 . Parts Sabotaged . | . . . Parts Stolen . | . . . Parts Stripped . | . . . Power Chain Reactions . | . . . Missiles Intercepted . | . . . Alert | -11 -10 -10 ------- Run | Scr Mat Min Peak Influence 350 | 20 350 90 Initial 75 | . 13 75 Average 160 | 9 191 75 Maximum Alert Level 1 | . 1 . Low Security (%) 66 | 100 57 100 Level 1 33 | . 42 . Level 2 . | . . . Level 3 . | . . . Level 4 . | . . . Level 5 . | . . . High Security . | . . . Max Security . | . . . Squads Dispatched 3 | . 3 . Investigation 2 | . 2 . Extermination . | . . . Reinforcement 1 | . 1 . Assault . | . . . Garrison . | . . . Intercept . | . . . Searches Triggered . | . . . Construction Impeded . | . . . Haulers Reinforced . | . . . Active Scanning Responses . | . . . Cargo Convoy Interrupts . | . . . Stealth | -11 -10 -10 --------- Run | Scr Mat Min Distress Signals 2 | . 2 . Communications Jammed . | . . . Distress Signals . | . . . Times Spotted 38 | . 24 14 Peak Tracking Total 12 | . 5 12 Tactical Retreats 1 | . 1 . Traps | -11 -10 -10 ------- Run | Scr Mat Min Traps Triggered 2 | . 2 . Indirectly . | . . . Trap Hack Attempts . | . . . Triggered . | . . . Disarmed . | . . . Reprogrammed . | . . . Reused . | . . . Traps Extracted . | . . . Installed . | . . . Triggered . | . . . Machines | -11 -10 -10 ---------- Run | Scr Mat Min Machines Disabled . | . . . Max in Single Turn . | . . . Machines Sabotaged . | . . . Garrisons Compromised . | . . . Overloaded Fab Kills . | . . . Hacking | -11 -10 -10 --------- Run | Scr Mat Min Machines Accessed 8 | . 8 . Terminals 7 | . 7 . Fabricators . | . . . Repair Stations . | . . . Recycling Units 1 | . 1 . Scanalyzers . | . . . Garrison Access . | . . . Total Hacks 20 | . 20 . Successful 9 | . 9 . Failed 11 | . 11 . Catastrophic 2 | . 2 . Database Lockouts . | . . . Manual 13 | . 13 . Terminals 19 | . 19 . Fabricators . | . . . Repair Stations . | . . . Recycling Units 1 | . 1 . Scanalyzers . | . . . Garrison Access . | . . . Terminal Hacks 8 | . 8 . Part Schematic 4 | . 4 . Prototype ID Bank 2 | . 2 . Hauler Manifests 1 | . 1 . Zone Layout 1 | . 1 . Fabricator Hacks . | . . . Repair Station Hacks . | . . . Recycling Unit Hacks . | . . . Scanalyzer . | . . . Garrison Access Hacks . | . . . Unauthorized Hacks 1 | . 1 . Terminals . | . . . Fabricators . | . . . Repair Stations . | . . . Recycling Units 1 | . 1 . Tunnel 1 | . 1 . Scanalyzers . | . . . Garrison Access . | . . . Data Cores Recovered . | . . . Used . | . . . Hacking Detections 7 | . 7 . Full Trace Events 2 | . 2 . Feedback Events 1 | . 1 . Corruption 1 | . 1 . Feedback Blocked . | . . . Robot Schematics Acquired . | . . . Robots Built . | . . . Authchips . | . . . Time . | . . . Total Robot Build Rating . | . . . Part Schematics Acquired 4 | . 4 . Parts Built . | . . . Authchips . | . . . Time . | . . . Total Part Build Rating . | . . . Parts Repaired . | . . . Time . | . . . Parts Recycled . | . . . Recycled Matter . | . . . Retrieved Matter . | . . . Retrieved Components . | . . . Parts Scanalyzed . | . . . Part Schematics Acquired . | . . . Parts Damaged . | . . . Bothacking | -11 -10 -10 ------------ Run | Scr Mat Min Used RIF Installer . | . . . Robots Hacked . | . . . Non-combat . | . . . Combat . | . . . Robot Hacks Applied . | . . . Relay Couplers Released . | . . . Fabnet Peak Effective % . | . . . Robots Rewired . | . . . Allies Hacked . | . . . Hacks Repelled . | . . . Allies | -11 -10 -10 -------- Run | Scr Mat Min Total Allies . | . . . Largest Group . | . . . Highest-Rated Group . | . . . Highest-Rated Ally . | . . . Total Orders . | . . . Ally Attacks . | . . . Total Damage . | . . . Kills . | . . . Allies Corrupted . | . . . Allies Melted . | . . . Intel | -11 -10 -10 ------- Run | Scr Mat Min Robot Analysis Total . | . . . Derelict Logs Recovered . | . . . Drone Launches . | . . . Drone Recoveries . | . . . Exploration | -11 -10 -10 ------------- Run | Scr Mat Min Turns Passed 1415 | 129 1112 174 Spaces Moved 657 | 58 529 70 Core 1 | 1 . . Treads 635 | 36 529 70 Legs . | . . . Wheels 21 | 21 . . Hover . | . . . Flight . | . . . Fastest Speed 50 | 50 160 160 Average Speed 168 | 133 164 227 Slowest Speed 240 | 160 240 240 Overloaded Moves . | . . . Propulsion Burnouts . | . . . Robots Hopped . | . . . Cave-ins Triggered . | . . . Exploration Rate (%) 35 | 5 86 16 Regions Visited 2 Branch Regions 1 Pre-discovered Areas 1 | . 1 . Known Exits Taken . | . . . Unknown Exits Taken 2 | 1 1 . Scrap Searched . | . . . Spaces Dug . | . . . Terrain Destroyed . | . . . Melee . | . . . Projectile . | . . . AOE . | . . . Terrain Rammed . | . . . Walls Destroyed . | . . . Machines Disabled . | . . . Actions | -11 -10 -10 --------- Run | Scr Mat Min Total 821 | 86 656 79 Wait 24 | . 24 . Move 655 | 57 528 70 Hop . | . . . Pick Up 22 | 10 12 . Fast Attach 11 | 5 6 . Attach 8 | 2 1 5 Detach . | . . . Swap 5 | 2 3 . Drop 13 | . 13 . Fire 76 | 10 62 4 Melee . | . . . Ram . | . . . Kick . | . . . Crush 7 | . 7 . Escape Stasis . | . . . Rewire . | . . . Trap . | . . . Miscellaneous . | . . . Route ------- -11/Scrapyard -10/Materials (discovered 3 exits: [*Mat x2] / [*Min]) -10/Mines History --------- Turn | Location | Event 14 | -11/Scrapyard | Discovered new exit (range 15) 130 | -11/Scrapyard | Entered Materials 318 | -10/Materials | Build established: Mutant 450 | -10/Materials | Discovered new exit (range 15) 715 | -10/Materials | Core integrity fell below 50% 716 | -10/Materials | Discovered new exit (range 16) 957 | -10/Materials | Discovered new exit (range 12) 1242 | -10/Materials | Entered Mines 1366 | -10/Mines | Assembled infested the area 1371 | -10/Mines | Assisted by a Guerilla fighting off Assembled 1405 | -10/Mines | Core integrity fell below 20% 1416 | -10/Mines | Destroyed by D-53 Grenadier with Mini Grenade Launcher Last Messages --------------- 01388_ as-96980 destroyed. 01388_ as-56820 destroyed. 01388_ K-01 Serf collects debris. 01389_ as-58384 destroyed. 01390_ as-57972 destroyed. 01390_ as-03124 destroyed. 01391_ as-01591 destroyed. 01393_ K-01 Serf collects debris. 01398_ System corrupted: Substantial component data lost. 01398_ K-01 Serf collects debris. 01408_ Assault Rifle destroyed. 01409_ The unstable cave ceiling collapses. 01410_ Lgt. Assault Rifle destroyed. 01411_ D-53 Grenadier destroyed. 01412_ Lgt. Treads destroyed. 01413_ The unstable cave ceiling collapses. 01413_ K-01 Serf collects debris. 01414_ The unstable cave ceiling collapses. 01414_ Ion Engine destroyed. 01415_ D-53 Grenadier knocked back. Map ----- +----------------------------------------------------+ | ???????????????????????????????????? | | ???????????????????????????????????? | | ???????????????????????????????????? | | ???????????????????????????????????? | | ????????????????????#??????????????? | | ????????????????????# ?????????????? | | ????????????????????# ?????????????? | | ????????????????????# ?????????????? | | ????????????????????# """??????????? | | ????????????????????# ??????????? | | ??????????????????### ""???????????? | | ?????????????????## ""???????????? | | ?????????????????# ""???????????? | | ?????????????????# # ???????????? | | ?????????????????# ## #???????????? | | ?????????????????# ## #???????????? | | ?????????????????# ## #???????????? | | ?????????????????# #???????????? | | ????????####?????# ####???????????? | | ????????? ?????# #??????????????? | | ?????????? ????# #########??????? | | ??????????# #???# # ##?????? | | ??????????#! ###### ##????? | | ??????????# % # ##?# #????? | | ?????????## % ?# #????? | | ?????????# = ## @ ###???? | | ??????????# # ##??? | | ?????????## ##?? | | ?????????# ## #?? | | ?????????# ## #?? | | ??????????# ## k #?? | | ??????????# # ## d % ##?? | | ???????????# """ #??? | | ???????????# ## """ ##??? | | ???????????# ## """ ##???? | | ???????????# #### ##????? | | ??????????# % ##???# ##?????? | | ??????????# ???? #??????? | | ????????? ???? ##??????? | | ??????? ????#####???????? | | ??????? ## ????????????????? | | ??????? #?##### ????????????????? | | ??????? ???????#????????????????? | | ???????? ?????????????????????????? | | ???????????????????????????????????? | | ???????????????????????????????????? | | ???????????????????????????????????? | | ???????????????????????????????????? | | ???????????????????????????????????? | | ???????????????????????????????????? | +----------------------------------------------------+ Best States ------------- Heat Dissipation 25 Energy Generation 14 Energy Capacity 250 Matter Stores 300 Matter Capacity 300 Sight Range 16 Terrain Scan Density 10 Core Shielding 20 Evasion (%) 42 Targeting Accuracy 5 Recoil Reduction 2 Item Schematics ----------------- Cargo Storage Unit | -10/Materials | Hacked Lrg. Storage Unit | -10/Materials | Hacked Hcp. Storage Unit | -10/Materials | Hacked Seismic Detector | -10/Materials | Hacked Robot Schematics ------------------ None Fabricated ------------ Nothing Alien Tech Used ----------------- None Achievements -------------- None Challenges ------------ None Game ------ Seed FieldNavigationShredder Manual? 0 Play Time 00:11:55 Cumulative 301.2 hours Start 2022.04.23 @ 14:17:03 End 2022.04.23 @ 14:28:57 Sessions 1 Manual Loads 0 Difficulty Rogue Special Mode None Game No. 310 Rogue 310 Adventurer 0 Explorer 0 Win Type - Total 4 Types 4/0/0/0/0/0/0/0/0 Lore% 60 Gallery% 75 Achievement% 63 Wizard Run 0 Options --------- ASCII 0 Keyboard 0 Movement Numpad Keybinds 0 Fullscreen 2 Font 24/Terminus Map View 76x50 Tactical HUD 1 Map Filters NONE Filters NONE Steam 1 RUN: be39efbe-3c38-4286-b8f0-59cedeb57e7e